bitfinex/quotes_BTCUSD_20241004
["timestamp","ask_amount","ask_price","bid_price","bid_amount"]
[1728031350645,0.16193,61755.0,61751.0,0.161938]
[1728031351096,0.323852,61757.0,61750.0,0.161942]
[1728031351097,0.161933,61754.0,61750.0,0.161942]
[1728031352220,0.16193,61755.0,61751.0,0.161939]
[1728031352456,0.161933,61754.0,61751.0,0.161939]
[1728031353868,0.161933,61754.0,61750.0,0.161942]
[1728031354318,0.161934,61754.0,61750.0,0.161942]
[1728031354545,0.323861,61755.0,61750.0,0.161942]
[1728031355037,0.323865,61754.0,61748.0,0.001638]
[1728031355263,0.323865,61754.0,61748.0,0.163585]
[1728031355495,0.04846198,61756.0,61749.0,0.161945]
[1728031355725,0.161935,61753.0,61750.0,0.161942]
[1728031356402,0.04846198,61756.0,61748.0,0.001638]
[1728031356626,0.161933,61754.0,61750.0,0.161942]
[1728031356854,0.21039198,61755.0,61751.0,0.161939]
[1728031357093,0.04846198,61755.0,61753.0,0.161933]
[1728031357362,0.23461797,61757.0,61753.0,0.161933]
[1728031357363,0.04846198,61757.0,61753.0,0.161933]
[1728031357637,0.21038698,61757.0,61753.0,0.161933]
[1728031357864,0.161928,61756.0,61752.0,0.161936]
[1728031358977,0.04846198,61757.0,61748.0,0.001638]
[1728031359200,0.04846198,61756.0,61748.0,0.001638]
[1728031359888,0.161933,61754.0,61751.0,0.161939]
[1728031360344,0.37231798,61756.0,61750.0,0.16194]
[1728031360575,0.161933,61754.0,61751.0,0.161939]
[1728031361257,0.16193,61755.0,61751.0,0.162939]
[1728031361498,0.04846198,61756.0,61751.0,0.162939]
[1728031361499,0.21042913,61756.0,61752.0,0.161937]
[1728031361945,0.161927,61756.0,61752.0,0.161937]
[1728031362175,0.16193,61755.0,61752.0,0.161937]
[1728031363532,0.21043213,61755.0,61752.0,0.161937]
[1728031364677,0.161933,61754.0,61750.0,0.163581]
[1728031364904,0.161936,61753.0,61750.0,0.163581]
[1728031365211,0.04850213,61754.0,61751.0,0.16194]
[1728031365212,0.21043513,61754.0,61751.0,0.16194]
[1728031365436,0.21043513,61754.0,61751.0,0.161939]
[1728031365437,0.04850213,61754.0,61751.0,0.161939]
[1728031365878,0.21043413,61754.0,61751.0,0.16194]
[1728031366340,0.161938,61752.0,61750.0,0.001638]
[1728031366776,0.0485476,61753.0,61750.0,0.001638]
[1728031367223,0.0485476,61753.0,61750.0,0.163579]
[1728031367670,0.0485476,61753.0,61751.0,0.16194]
[1728031368559,0.0485476,61753.0,61752.0,0.161938]
[1728031368781,0.0485476,61753.0,61750.0,0.001638]
[1728031369038,0.0485476,61753.0,61750.0,0.163579]
[1728031369695,0.0485476,61753.0,61752.0,0.161938]
[1728031369920,0.0485476,61753.0,61751.0,0.16194]
[1728031370579,0.0485476,61753.0,61750.0,0.001638]
[1728031370802,0.0485476,61753.0,61751.0,0.16194]
[1728031371016,0.0485476,61753.0,61752.0,0.161938]
[1728031371231,0.04857235,61753.0,61752.0,0.161938]
[1728031371444,0.07285853,61754.0,61752.0,0.161938]
[1728031372494,0.07285853,61753.0,61751.0,0.16194]
[1728031374050,0.07285853,61753.0,61752.0,0.161938]
[1728031374492,0.09714471,61754.0,61752.0,0.161938]
[1728031374962,0.323872,61753.0,61750.0,0.001638]
[1728031375200,0.23482914,61752.0,61750.0,0.001638]
[1728031375480,0.07288914,61752.0,61750.0,0.001638]
[1728031376151,0.07289478,61752.0,61751.0,0.001638]
[1728031376826,0.23483278,61752.0,61751.0,0.001638]
[1728031377494,0.09719304,61753.0,61751.0,0.001638]
[1728031378862,0.25913104,61753.0,61751.0,0.001638]
[1728031379087,0.09719304,61753.0,61751.0,0.001638]
[1728031379309,0.09719304,61753.0,61751.0,0.163576]
[1728031379957,0.09719304,61753.0,61751.0,0.001638]
[1728031380206,0.1214913,61754.0,61752.0,0.343538]
[1728031380207,0.04861064,61754.0,61752.0,0.343538]
[1728031380494,0.03778833,61760.0,61759.0,0.161919]
[1728031380710,0.03778833,61760.0,61759.0,0.28476813]
[1728031380928,0.03778833,61760.0,61759.0,0.29452117]
[1728031381141,0.03778833,61760.0,61759.0,0.17167204]
[1728031381584,0.01442449,61760.0,61759.0,0.37152117]
[1728031382273,0.01442449,61760.0,61759.0,0.25967204]
[1728031382962,0.01442449,61760.0,61759.0,0.27267204]
[1728031383844,0.01442449,61760.0,61759.0,0.26167204]
[1728031384069,0.09608758,61762.0,61759.0,0.11275304]
[1728031384316,0.09608758,61762.0,61761.0,0.161914]
[1728031384793,0.09608758,61762.0,61761.0,0.17163821]
[1728031385717,0.09608758,61762.0,61761.0,0.18263821]
[1728031387297,0.09608758,61762.0,61761.0,0.19363821]
[1728031388541,0.09608758,61762.0,61761.0,0.03468009]
[1728031388756,0.17650658,61762.0,61761.0,0.03468009]
[1728031388977,0.22505662,61762.0,61761.0,0.03468009]
[1728031389193,0.22505662,61762.0,61761.0,0.0427068]
[1728031389432,0.22505662,61762.0,61761.0,0.0317068]
[1728031389433,0.38696762,61762.0,61761.0,0.0317068]
[1728031389663,0.38696762,61762.0,61761.0,0.02402671]
[1728031389899,0.33841758,61762.0,61761.0,0.00802671]
[1728031390119,0.33841758,61762.0,61761.0,0.001]
[1728031390120,0.17650658,61762.0,61761.0,0.001]
[1728031390329,0.38695338,61762.0,61761.0,0.01768009]
[1728031390572,0.22504238,61762.0,61761.0,0.01768009]
[1728031390835,0.21100433,61762.0,61761.0,0.01368009]
[1728031391069,0.21100433,61762.0,61761.0,0.01468009]
[1728031391512,0.16246853,61762.0,61761.0,0.01468009]
[1728031393026,0.14604853,61762.0,61761.0,0.01468009]
[1728031393484,0.30795953,61762.0,61761.0,0.01468009]
[1728031393733,0.30795953,61762.0,61761.0,0.002]
[1728031394193,0.14604853,61762.0,61761.0,0.002]
[1728031394435,0.30795953,61762.0,61761.0,0.002]
[1728031394675,0.38078459,61762.0,61761.0,0.002]
[1728031394932,0.38078459,61762.0,61761.0,0.01468351]
[1728031395418,0.38078459,61762.0,61761.0,0.01368351]
[1728031395944,0.40535953,61762.0,61761.0,0.001]
[1728031396172,0.43074698,61762.0,61761.0,0.001]
[1728031396398,0.43174698,61762.0,61761.0,0.001]
[1728031396618,0.161917,61760.0,61759.0,0.001638]
[1728031396867,0.4061292,61760.0,61759.0,0.001638]
[1728031397355,0.62705284,61760.0,61759.0,0.001638]
[1728031397600,0.55766613,61760.0,61759.0,0.001638]
[1728031397852,0.72352252,61760.0,61759.0,0.001638]
[1728031398091,0.55966613,61760.0,61759.0,0.001638]
[1728031398576,0.72452252,61760.0,61759.0,0.002638]
[1728031398813,0.72552252,61760.0,61759.0,0.003638]
[1728031399025,0.72452252,61760.0,61759.0,0.002638]
[1728031399249,0.56166613,61760.0,61759.0,0.003638]
[1728031399489,0.62608437,61760.0,61759.0,0.003638]
[1728031399739,0.62508437,61760.0,61759.0,0.002638]
[1728031399995,0.63708437,61760.0,61759.0,0.002638]
[1728031400700,0.66247616,61760.0,61759.0,0.002638]
[1728031401803,0.82626043,61760.0,61759.0,0.002638]
[1728031402027,0.80086864,61760.0,61759.0,0.002638]
[1728031402725,0.80286864,61760.0,61759.0,0.002638]
[1728031403158,0.80284434,61760.0,61759.0,0.002638]
[1728031403385,0.80284434,61760.0,61759.0,0.01082367]
[1728031403922,0.82823582,61760.0,61759.0,0.01082367]
[1728031404373,0.66447585,61760.0,61759.0,0.01082367]
[1728031405285,0.70877767,61760.0,61759.0,0.01082367]
[1728031406159,0.87253764,61760.0,61759.0,0.01082367]
[1728031406377,0.70877767,61760.0,61759.0,0.01082367]
[1728031407088,0.66247585,61760.0,61759.0,0.01082367]
[1728031407797,0.449817,61760.0,61759.0,0.01082367]
[1728031408043,0.57102094,61760.0,61759.0,0.01082367]
[1728031408290,0.47722094,61760.0,61759.0,0.01082367]
[1728031408508,0.39812094,61760.0,61759.0,0.01082367]
[1728031408991,0.35987983,61760.0,61759.0,0.01082367]
[1728031409223,0.37187983,61760.0,61759.0,0.00982367]
[1728031409453,0.37787983,61760.0,61759.0,0.01082367]
[1728031409695,0.37787983,61760.0,61759.0,0.0235563]
[1728031409926,0.3945293,61760.0,61759.0,0.01082367]
[1728031410412,0.37787983,61760.0,61759.0,0.01082367]
[1728031410648,0.35828779,61760.0,61759.0,0.01082367]
[1728031410838,0.35828779,61760.0,61759.0,0.00982367]
[1728031410839,0.3776759,61760.0,61759.0,0.00982367]
[1728031411108,0.3856759,61760.0,61759.0,0.00982367]
[1728031411568,0.3776759,61760.0,61759.0,0.00982367]
[1728031411765,0.38167369,61760.0,61759.0,0.00982367]
[1728031411998,0.25932496,61760.0,61759.0,0.00982367]
[1728031412737,0.35628466,61760.0,61759.0,0.00982367]
[1728031412977,0.35628467,61760.0,61759.0,0.00982367]
[1728031413453,0.25932496,61760.0,61759.0,0.00982367]
[1728031413696,0.25934779,61760.0,61759.0,0.00982367]
[1728031413932,0.28473621,61760.0,61759.0,0.00982367]
[1728031414164,0.40594015,61760.0,61759.0,0.00982367]
[1728031414408,0.38169462,61760.0,61759.0,0.00982367]
[1728031414657,0.40594015,61760.0,61759.0,0.00982367]
[1728031416910,0.40394015,61760.0,61759.0,0.00982367]
[1728031417156,0.45092292,61760.0,61759.0,0.00982367]
[1728031417399,0.63774692,61760.0,61759.0,0.01082367]
[1728031417629,0.75781281,61760.0,61759.0,0.01082367]
[1728031417860,0.7411391,61760.0,61759.0,0.01082367]
[1728031418097,0.57795239,61760.0,61759.0,0.01082367]
[1728031420820,0.60334365,61760.0,61759.0,0.01082367]
[1728031422011,0.57995239,61760.0,61759.0,0.01082367]
[1728031422246,0.57991474,61760.0,61759.0,0.01082367]
[1728031423237,0.57791474,61760.0,61759.0,0.01082367]
[1728031423488,0.74110145,61760.0,61759.0,0.01082367]
[1728031423985,0.76849303,61760.0,61759.0,0.01082367]
[1728031424235,0.76931203,61760.0,61759.0,0.01082367]
[1728031424687,0.60612532,61760.0,61759.0,0.01082367]
[1728031424957,0.46070866,61760.0,61759.0,0.01082367]
[1728031425178,0.60412532,61760.0,61759.0,0.01082367]
[1728031425417,0.45870866,61760.0,61759.0,0.01082367]
[1728031425643,0.46070866,61760.0,61759.0,0.01082367]
[1728031426675,0.45870866,61760.0,61759.0,0.01082367]
[1728031426804,0.59515374,61760.0,61759.0,0.01082367]
[1728031427243,0.45870866,61760.0,61759.0,0.01082367]
[1728031427460,0.60412532,61760.0,61759.0,0.01082367]
[1728031427672,0.57873374,61760.0,61759.0,0.01082367]
[1728031427889,0.43531708,61760.0,61759.0,0.01082367]
[1728031428328,0.42831708,61760.0,61759.0,0.01082367]
[1728031428974,0.49447304,61760.0,61759.0,0.01082367]
[1728031430007,0.48747304,61760.0,61759.0,0.00982367]
[1728031430222,0.49547304,61760.0,61759.0,0.00982367]
[1728031430458,0.50447304,61760.0,61759.0,0.00982367]
[1728031430699,0.48747304,61760.0,61759.0,0.00982367]
[1728031430914,0.68645971,61760.0,61759.0,0.00982367]
[1728031431128,0.69745971,61760.0,61759.0,0.00982367]
[1728031431355,0.68745971,61760.0,61759.0,0.00982367]
[1728031432005,0.48747304,61760.0,61759.0,0.00982367]
[1728031432874,0.50147304,61760.0,61759.0,0.00982367]
[1728031433149,0.43531708,61760.0,61759.0,0.00982367]
[1728031433783,0.44931708,61760.0,61759.0,0.00982367]
[1728031434007,0.4747101,61760.0,61759.0,0.00982367]
[1728031434480,0.66197747,61760.0,61759.0,0.00982367]
[1728031437616,0.63658445,61760.0,61759.0,0.00982367]
[1728031438071,0.79977116,61760.0,61759.0,0.00982367]
[1728031439025,0.97067116,61760.0,61759.0,0.00982367]
[1728031440174,0.80748445,61760.0,61759.0,0.00982367]
[1728031440894,0.83287762,61760.0,61759.0,0.00982367]
[1728031442029,0.80748445,61760.0,61759.0,0.00982367]
[1728031443433,0.88159561,61760.0,61759.0,0.00982367]
[1728031443674,0.88159561,61760.0,61751.0,0.001638]
[1728031443675,0.47966316,61752.0,61751.0,0.001638]
[1728031445253,0.51505845,61752.0,61751.0,0.001638]
[1728031445688,0.57943502,61752.0,61751.0,0.001638]
[1728031445938,0.59043502,61752.0,61751.0,0.001638]
[1728031446145,0.66603502,61752.0,61751.0,0.001638]
[1728031446411,0.83122173,61752.0,61751.0,0.001638]
[1728031446658,0.49563502,61752.0,61751.0,0.001638]
[1728031447137,0.282938,61752.0,61751.0,0.001638]
[1728031447362,0.282938,61752.0,61751.0,0.01441254]
[1728031448789,0.282938,61752.0,61751.0,0.18841254]
[1728031449019,0.42867622,61752.0,61751.0,0.18841254]
[1728031449264,0.121,61752.0,61751.0,0.18841254]
[1728031449517,0.021,61752.0,61751.0,0.18841254]
[1728031449743,0.0047101,61752.0,61751.0,0.18841254]
[1728031449975,0.07756812,61752.0,61751.0,0.35035254]
[1728031450232,0.09824896,61752.0,61751.0,0.35035254]
[1728031450675,0.10124896,61752.0,61751.0,0.3585206]
[1728031451109,0.10124896,61752.0,61751.0,0.3605206]
[1728031451351,0.10124896,61752.0,61751.0,0.1985806]
[1728031451352,0.00444956,61752.0,61751.0,0.1985806]
[1728031451577,0.0758594,61752.0,61751.0,0.3605206]
[1728031451799,0.0788594,61752.0,61751.0,0.3605206]
[1728031452016,0.0788594,61752.0,61751.0,0.1985806]
[1728031452234,0.0758594,61752.0,61751.0,0.3605206]
[1728031452444,0.003,61752.0,61751.0,0.1985806]
[1728031452661,0.003,61752.0,61751.0,0.2005806]
[1728031452871,0.003,61752.0,61751.0,0.3625206]
[1728031453090,0.05156358,61752.0,61751.0,0.3625206]
[1728031453317,0.003,61752.0,61751.0,0.3625206]
[1728031454204,0.01969851,61752.0,61751.0,0.3625206]
[1728031454448,0.18163651,61752.0,61751.0,0.2005806]
[1728031454678,0.01969851,61752.0,61751.0,0.2005806]
[1728031454915,0.0196953,61752.0,61751.0,0.2005806]
[1728031455394,0.06825312,61752.0,61751.0,0.3625206]
[1728031456082,0.21349582,61752.0,61751.0,0.2005806]
[1728031456556,0.164938,61752.0,61751.0,0.2005806]
[1728031456785,0.26205365,61752.0,61751.0,0.2005806]
[1728031457545,0.25905365,61752.0,61751.0,0.1965806]
[1728031457777,0.25905365,61752.0,61751.0,0.1975806]
[1728031458673,0.25905365,61752.0,61751.0,0.1015806]
[1728031458893,0.25905365,61752.0,61751.0,0.1025806]
[1728031459323,0.25906798,61752.0,61751.0,0.1025806]
[1728031459775,0.161938,61752.0,61751.0,0.1025806]
[1728031460653,0.162757,61752.0,61751.0,0.1025806]
[1728031461338,0.28416947,61752.0,61751.0,0.0245806]
[1728031461557,0.162757,61752.0,61751.0,0.01180606]
[1728031461780,0.27721621,61752.0,61751.0,0.01180606]
[1728031462015,0.30848381,61752.0,61751.0,0.01180606]
[1728031462268,0.30848381,61752.0,61751.0,0.01080606]
[1728031462503,0.164757,61752.0,61751.0,0.01080606]
[1728031462736,0.164757,61752.0,61751.0,0.00980606]
[1728031462956,0.268757,61752.0,61751.0,0.00980606]
[1728031463803,0.264757,61752.0,61751.0,0.00980606]
[1728031464037,0.270757,61752.0,61751.0,0.01080606]
[1728031464258,0.268757,61752.0,61751.0,0.01080606]
[1728031464479,0.29415081,61752.0,61751.0,0.01080606]
[1728031464701,0.29815081,61752.0,61751.0,0.01080606]
[1728031465182,0.29415081,61752.0,61751.0,0.01080606]
[1728031465400,0.29615081,61752.0,61751.0,0.01080606]
[1728031465628,0.30415081,61752.0,61751.0,0.01080606]
[1728031465868,0.29615081,61752.0,61751.0,0.01080606]
[1728031466292,0.30415081,61752.0,61751.0,0.01080606]
[1728031467594,0.278757,61752.0,61751.0,0.01080606]
[1728031468663,0.44270773,61752.0,61751.0,0.01080606]
[1728031470907,0.46810191,61752.0,61751.0,0.01080606]
[1728031471884,0.44270773,61752.0,61751.0,0.01080606]
[1728031472597,0.46684117,61752.0,61751.0,0.01080606]
[1728031473357,0.47764717,61752.0,61751.0,0.01080606]
[1728031473592,0.57643435,61752.0,61751.0,0.01080606]
[1728031473824,0.41248362,61752.0,61751.0,0.01080606]
[1728031474058,0.59100432,61752.0,61751.0,0.01080606]
[1728031474284,0.69731032,61752.0,61751.0,0.01080606]
[1728031474764,0.53337788,61752.0,61751.0,0.01080606]
[1728031475002,0.69731032,61752.0,61751.0,0.01080606]
[1728031475695,0.53337788,61752.0,61751.0,0.01080606]
[1728031476163,0.69730486,61752.0,61751.0,0.01080606]
[1728031477663,0.6719106,61752.0,61751.0,0.01080606]
[1728031479141,0.50798362,61752.0,61751.0,0.01080606]
[1728031480798,0.53337814,61752.0,61751.0,0.01080606]
[1728031481272,0.65942895,61752.0,61751.0,0.01080606]
[1728031481972,0.63603443,61752.0,61751.0,0.01080606]
[1728031482217,0.50998362,61752.0,61751.0,0.01080606]
[1728031482469,0.52669526,61752.0,61751.0,0.01080606]
[1728031485093,0.55209087,61752.0,61751.0,0.01080606]
[1728031487663,0.52669526,61752.0,61751.0,0.01080606]
[1728031487909,0.50998362,61752.0,61751.0,0.01080606]
[1728031488151,0.52672453,61752.0,61751.0,0.01080606]
[1728031490823,0.1,61741.0,61738.0,0.24350847]
[1728031491111,0.38489262,61739.0,61738.0,0.24350847]
[1728031491351,0.56548849,61739.0,61738.0,0.24350847]
[1728031491588,0.263974,61738.0,61737.0,0.001638]
[1728031492501,0.261974,61738.0,61737.0,0.001638]
[1728031493469,0.28068274,61738.0,61737.0,0.001638]
[1728031493703,0.27868274,61738.0,61737.0,0.001638]
[1728031493927,0.28568274,61738.0,61737.0,0.001638]
[1728031494185,0.45886945,61738.0,61737.0,0.001638]
[1728031494435,0.44386945,61738.0,61737.0,0.001638]
[1728031494717,0.44316071,61738.0,61737.0,0.001638]
[1728031494963,0.44116071,61738.0,61737.0,0.001638]
[1728031495652,0.45789352,61738.0,61737.0,0.001638]
[1728031495879,0.29470681,61738.0,61737.0,0.001638]
[1728031496327,0.32010662,61738.0,61737.0,0.001638]
[1728031496581,0.32010662,61738.0,61737.0,0.00958616]
[1728031497569,0.29470681,61738.0,61737.0,0.00958616]
[1728031498045,0.42303582,61738.0,61737.0,0.00958616]
[1728031500567,0.44843529,61738.0,61737.0,0.00958616]
[1728031500791,0.32010016,61738.0,61737.0,0.00958616]
[1728031501031,0.30337347,61738.0,61737.0,0.00958616]
[1728031501242,0.32011119,61738.0,61737.0,0.00958616]
[1728031501469,0.44303181,61738.0,61737.0,0.00958616]
[1728031501697,0.49958433,61738.0,61737.0,0.00958616]
[1728031503892,0.49258433,61738.0,61737.0,0.00958616]
[1728031504138,0.50158433,61738.0,61737.0,0.00958616]
[1728031504362,0.49258433,61738.0,61737.0,0.00958616]
[1728031504568,0.50258433,61738.0,61737.0,0.00958616]
[1728031504995,0.49258433,61738.0,61737.0,0.00958616]
[1728031505205,0.50458433,61738.0,61737.0,0.00958616]
[1728031505832,0.49558433,61738.0,61737.0,0.00958616]
[1728031506037,0.50658433,61738.0,61737.0,0.00958616]
[1728031507127,0.45003181,61738.0,61737.0,0.00958616]
[1728031507352,0.45008991,61738.0,61737.0,0.00958616]
[1728031507574,0.46688588,61738.0,61737.0,0.00958616]
[1728031510222,0.54788588,61738.0,61737.0,0.00958616]
[1728031510657,0.53108991,61738.0,61737.0,0.00958616]
[1728031510872,0.42494275,61738.0,61737.0,0.00958616]
[1728031511098,0.53106755,61738.0,61737.0,0.00958616]
[1728031511545,0.6367111,61738.0,61737.0,0.00958616]
[1728031513021,0.53106755,61738.0,61737.0,0.00958616]
[1728031514138,0.52006755,61738.0,61737.0,0.00958616]
[1728031514355,0.52206755,61738.0,61737.0,0.00958616]
[1728031514598,0.93707602,61738.0,61737.0,0.00958616]
[1728031514806,0.38492162,61728.0,61727.0,0.001638]
[1728031516925,0.40492162,61728.0,61727.0,0.001638]
[1728031517661,0.55874846,61728.0,61727.0,0.001638]
[1728031517907,0.56074846,61728.0,61727.0,0.001638]
[1728031518136,0.57174846,61728.0,61727.0,0.001638]
[1728031518370,0.57174846,61728.0,61714.0,0.32200847]
[1728031518371,0.162035,61715.0,61714.0,0.32200847]
[1728031518593,0.162035,61715.0,61714.0,0.24350847]
[1728031518594,0.28495562,61715.0,61714.0,0.24350847]
[1728031518835,0.40167988,61715.0,61714.0,0.01457848]
[1728031519266,0.40167988,61715.0,61709.0,0.0783]
[1728031519267,0.162048,61710.0,61709.0,0.0783]
[1728031519508,0.40169288,61710.0,61709.0,0.0783]
[1728031519724,0.40169288,61710.0,61709.0,0.0145998]
[1728031520175,0.40169288,61710.0,61705.0,0.0753]
[1728031520176,0.23964488,61710.0,61705.0,0.0753]
[1728031520399,0.35773789,61706.0,61705.0,0.0753]
[1728031520617,0.37451139,61706.0,61705.0,0.0753]
[1728031521060,0.162064,61704.0,61703.0,0.097938]
[1728031521296,0.22732714,61704.0,61703.0,0.001638]
[1728031521515,0.22732714,61704.0,61703.0,0.0162634]
[1728031521748,0.1788375,61704.0,61703.0,0.001638]
[1728031521979,0.33556043,61704.0,61703.0,0.001638]
[1728031522417,0.40944782,61704.0,61703.0,0.001638]
[1728031522652,0.55802196,61704.0,61703.0,0.001638]
[1728031522860,0.30424917,61704.0,61703.0,0.001638]
[1728031523088,0.4255615,61704.0,61703.0,0.001638]
[1728031523365,0.40317386,61704.0,61703.0,0.001638]
[1728031523562,0.30617261,61704.0,61703.0,0.001638]
[1728031523776,0.46087363,61704.0,61703.0,0.001638]
[1728031524024,0.46287363,61704.0,61703.0,0.001638]
[1728031524897,0.46287363,61704.0,61703.0,0.00974271]
[1728031525577,0.30817261,61704.0,61703.0,0.00974271]
[1728031526025,0.31017261,61704.0,61703.0,0.00974271]
[1728031526466,0.40500638,61704.0,61703.0,0.00974271]
[1728031526685,0.40699849,61704.0,61703.0,0.00974271]
[1728031526897,0.52814152,61704.0,61703.0,0.00974271]
[1728031527135,0.69048253,61704.0,61703.0,0.00974271]
[1728031527355,0.65000573,61704.0,61703.0,0.00974271]
[1728031527572,0.62459406,61704.0,61703.0,0.00974271]
[1728031529160,0.62259406,61704.0,61703.0,0.00974271]
[1728031529374,0.47823601,61704.0,61703.0,0.00974271]
[1728031529587,0.40567367,61704.0,61703.0,0.00974271]
[1728031529802,0.45413523,61704.0,61703.0,0.00974271]
[1728031530670,0.28284015,61704.0,61703.0,0.00974271]
[1728031530884,0.43117415,61704.0,61703.0,0.00974271]
[1728031531097,0.57846162,61704.0,61703.0,0.00974271]
[1728031531315,0.43117415,61704.0,61703.0,0.00974271]
[1728031531791,0.30825353,61704.0,61703.0,0.00974271]
[1728031532233,0.28284015,61704.0,61703.0,0.00974271]
[1728031532846,0.266064,61704.0,61703.0,0.00974271]
[1728031535062,0.28269942,61704.0,61703.0,0.00974271]
[1728031535286,0.47129969,61704.0,61703.0,0.00974271]
[1728031535760,0.51966473,61704.0,61703.0,0.00974271]
[1728031535969,0.47129969,61704.0,61703.0,0.00974271]
[1728031536605,0.56802978,61704.0,61703.0,0.00974271]
[1728031537461,0.47129969,61704.0,61703.0,0.00974271]
[1728031537682,0.51087913,61704.0,61703.0,0.00974271]
[1728031537898,0.51287913,61704.0,61703.0,0.00974271]
[1728031538331,0.60960922,61704.0,61703.0,0.00974271]
[1728031538547,0.58543632,61704.0,61703.0,0.00974271]
[1728031538754,0.51287913,61704.0,61703.0,0.00974271]
[1728031538967,0.58543735,61704.0,61703.0,0.00974271]
[1728031539188,0.58552523,61704.0,61703.0,0.00974271]
[1728031539457,0.63387937,61704.0,61703.0,0.00974271]
[1728031539676,0.51296676,61704.0,61703.0,0.00974271]
[1728031540104,0.53596676,61704.0,61703.0,0.00974271]
[1728031540326,0.37078005,61704.0,61703.0,0.00974271]
[1728031540564,0.37078005,61704.0,61682.0,0.24350847]
[1728031540565,0.2851,61690.0,61683.0,0.24350847]
[1728031540786,0.32719837,61690.0,61683.0,0.24350847]
[1728031540999,0.33466298,61690.0,61683.0,0.24350847]
[1728031541223,0.33466298,61690.0,61676.0,0.24350847]
[1728031541439,0.31046284,61690.0,61676.0,0.24350847]
[1728031541666,0.31146284,61690.0,61676.0,0.24350847]
[1728031541875,0.2631,61690.0,61683.0,0.0808]
[1728031542305,0.2621,61690.0,61683.0,0.0808]
[1728031542991,0.2741,61690.0,61683.0,0.0808]
[1728031543647,0.2751,61690.0,61683.0,0.0808]
[1728031544098,0.2731,61690.0,61683.0,0.0808]
[1728031544588,0.285056,61690.0,61678.0,0.0797]
[1728031545000,0.31047601,61690.0,61678.0,0.0797]
[1728031545219,0.31047601,61690.0,61689.0,0.0098709]
[1728031546728,0.47677601,61690.0,61689.0,0.0098709]
[1728031546941,0.64196272,61690.0,61689.0,0.0098709]
[1728031547398,0.63096272,61690.0,61689.0,0.0098709]
[1728031547621,0.59354271,61690.0,61689.0,0.0098709]
[1728031547842,0.60754271,61690.0,61689.0,0.0098709]
[1728031548062,0.62154271,61690.0,61689.0,0.0098709]
[1728031548314,0.80144271,61690.0,61689.0,0.0098709]
[1728031548530,0.8739612,61690.0,61689.0,0.0098709]
[1728031548743,0.44965838,61677.0,61676.0,0.24350847]
[1728031549415,0.262137,61676.0,61675.0,0.001638]
[1728031550807,0.267137,61676.0,61675.0,0.001638]
[1728031551041,0.3093194,61676.0,61675.0,0.001638]
[1728031551248,0.3133194,61676.0,61675.0,0.001638]
[1728031551927,0.271137,61676.0,61675.0,0.001638]
[1728031552138,0.28789329,61676.0,61675.0,0.001638]
[1728031552372,0.51223773,61676.0,61675.0,0.001638]
[1728031553270,0.36489329,61676.0,61675.0,0.001638]
[1728031553730,0.35989329,61676.0,61675.0,0.001638]
[1728031553984,0.36789329,61676.0,61675.0,0.001638]
[1728031554217,0.36589329,61676.0,61675.0,0.001638]
[1728031554450,0.37489329,61676.0,61675.0,0.001638]
[1728031554760,0.36889329,61676.0,61675.0,0.001638]
[1728031555090,0.37689329,61676.0,61675.0,0.001638]
[1728031555346,0.40231844,61676.0,61675.0,0.001638]
[1728031555581,0.262142,61674.0,61673.0,0.0756]
[1728031555791,0.27889829,61674.0,61673.0,0.0756]
[1728031557069,0.262142,61674.0,61673.0,0.0756]
[1728031557301,0.271142,61674.0,61673.0,0.0756]
[1728031557514,0.009,61674.0,61673.0,0.237745]
[1728031557716,0.009,61674.0,61673.0,0.0756]
[1728031557717,0.171142,61674.0,61673.0,0.0756]
[1728031557960,0.171142,61674.0,61666.0,1.0856]
[1728031557961,0.1,61673.0,61666.0,1.0856]
[1728031558188,0.162158,61669.0,61667.0,0.32270847]
[1728031558410,0.09237035,61673.0,61667.0,0.32270847]
[1728031558626,0.09237035,61673.0,61667.0,0.0792]
[1728031558627,0.324291,61673.0,61667.0,0.0792]
[1728031559062,0.324296,61672.0,61667.0,0.0792]
[1728031559292,0.004,61674.0,61667.0,0.0792]
[1728031559293,0.162157,61669.0,61667.0,0.0792]
[1728031559539,0.162158,61668.0,61667.0,0.0792]
[1728031560056,0.162158,61668.0,61666.0,0.995]
[1728031560057,0.162161,61667.0,61666.0,0.995]
[1728031560288,0.34968538,61667.0,61666.0,0.995]
[1728031560779,0.47511163,61667.0,61666.0,0.995]
[1728031561698,0.51323768,61667.0,61666.0,0.995]
[1728031562442,0.47511163,61667.0,61666.0,0.995]
[1728031562909,0.48211163,61667.0,61666.0,0.995]
[1728031563656,0.48811163,61667.0,61666.0,0.995]
[1728031563903,0.47511163,61667.0,61666.0,0.995]
[1728031564365,0.48411163,61667.0,61666.0,0.995]
[1728031565064,0.49411163,61667.0,61666.0,0.995]
[1728031565293,0.30658725,61667.0,61666.0,0.995]
[1728031565775,0.281161,61667.0,61666.0,0.995]
[1728031566431,0.262161,61667.0,61666.0,1.0030447]
[1728031566651,0.269161,61667.0,61666.0,1.0030447]
[1728031567325,0.29458831,61667.0,61666.0,1.0030447]
[1728031567566,0.48211269,61667.0,61666.0,1.0030447]
[1728031568201,0.48211269,61667.0,61666.0,1.0038647]
[1728031569485,0.28758831,61667.0,61666.0,1.0038647]
[1728031569970,0.30658831,61667.0,61666.0,1.0038647]
[1728031570447,0.29758831,61667.0,61666.0,1.0038647]
[1728031570668,0.48511269,61667.0,61666.0,1.0038647]
[1728031570885,0.49111269,61667.0,61666.0,1.0038647]
[1728031571104,0.46568538,61667.0,61666.0,1.0038647]
[1728031571315,0.44968538,61667.0,61666.0,1.0038647]
[1728031571740,0.45668538,61667.0,61666.0,1.0038647]
[1728031572608,0.46268538,61667.0,61666.0,1.0038647]
[1728031573712,0.45668538,61667.0,61666.0,1.0038647]
[1728031573985,0.277161,61667.0,61666.0,1.0038647]
[1728031574199,0.30258873,61667.0,61666.0,1.0038647]
[1728031574426,0.29558873,61667.0,61666.0,1.0038647]
[1728031574668,0.30458873,61667.0,61666.0,1.0038647]
[1728031575652,0.28030873,61667.0,61666.0,1.0038647]
[1728031575904,0.20458873,61667.0,61666.0,1.0795647]
[1728031576411,0.18048873,61667.0,61666.0,1.0795647]
[1728031577599,0.18048873,61667.0,61666.0,1.2417277]
[1728031577600,0.00932773,61667.0,61666.0,1.2417277]
[1728031577867,0.162151,61671.0,61666.0,1.0795647]
[1728031578080,0.162149,61672.0,61666.0,1.07152]
[1728031578310,0.162153,61670.0,61667.0,0.16216]
[1728031578555,0.08537,61673.0,61666.0,1.07152]
[1728031578803,0.324301,61671.0,61666.0,1.07152]